Cogmind - Beta 15 @@@ ROGUE MODE // 2025.05.25 @ 12:21:05 Player: Elias Result: Destroyed by H-55 Commando with Gauss Rifle Performance ------------- Evolutions (2) 1000 Regions Visited (3) 600 Robots Destroyed (42) 210 Value Destroyed (828) 828 Prototype IDs (2) 40 Alien Tech Used (0) 0 Bonus (0) 0 TOTAL SCORE: 2678 Bonus ------- None Cogmind --------- Core Integrity 0/550 Matter 11/300 Energy 100/100 System Corruption 0% Temperature Cool (0) Movement Core (200) Ox3 Location -8/Materials Parts ------- > --- POWER (1) -------- (None) > --- PROPULSION (3) --- (None) > --- UTILITY (5) ------ Medium Storage Unit > --- WEAPON (2) ------- (None) > --- INVENTORY (10) --- Light Ion Engine Flight Unit ECM Suite Hacking Suite Cobbler Unit Pulse Rifle Light Assault Rifle Subdweller Machine Gun Peak State ------------ > --- POWER ------------ Light Ion Engine > --- PROPULSION ------- Aluminum Leg Aluminum Leg > --- UTILITY ---------- Medium Storage Unit Weight Redist. System Transport Network Coupler Cobbler Unit > --- WEAPON ----------- Particle Gun Light Assault Rifle > --- INVENTORY -------- Light Ion Engine Flight Unit Flight Unit ECM Suite Hacking Suite Subdweller Machine Gun Subdweller Shrapnel Launcher [Rating: 15] Favorites ----------- Power Light Ion Engine Engine Light Ion Engine Propulsion Aluminum Leg Leg Aluminum Leg Flight Unit Flight Unit Utility Medium Storage Unit Device Weight Redist. System Storage Medium Storage Unit Processor Transport Network Coupler Protection Hardened Medium Armor Plating Weapon Light Assault Rifle Energy Gun Particle Gun Ballistic Gun Light Assault Rifle Launcher Subdweller Shrapnel Launcher Build | -11 -10 -10 -8 ------- Run | Yrd Mat Sub Mat Slots Evolved 4 | . . . 4 Power . | . . . . Propulsion 1 | . . . 1 Utility 3 | . . . 3 Weapon . | . . . . Parts Attached 26 | 7 8 4 7 Power 4 | 2 1 1 . Engine 4 | 2 1 1 . Core . | . . . . Reactor . | . . . . Propulsion 8 | 2 3 1 2 Treads . | . . . . Leg 6 | 2 3 1 . Wheel . | . . . . Hover . | . . . . Flight 2 | . . . 2 Utility 7 | 1 3 . 3 Device 3 | . 1 . 2 Storage 2 | 1 1 . . Processor 1 | . 1 . . Hackware . | . . . . Protection 1 | . . . 1 Artifact . | . . . . Weapon 7 | 2 1 2 2 Energy Gun 3 | 1 1 1 . Energy Cannon . | . . . . Ballistic Gun 3 | 1 . 1 1 Ballistic Cannon . | . . . . Launcher 1 | . . . 1 Special Weapon . | . . . . Impact Weapon . | . . . . Slashing Weapon . | . . . . Piercing Weapon . | . . . . Special Melee Weapon . | . . . . Unidentified Prototypes . | . . . . Parts Lost 10 | . . 1 9 Power 1 | . . . 1 Propulsion 4 | . . . 4 Utility 2 | . . . 2 Weapon 3 | . . 1 2 Highest Loss Streak 7 | . . 1 7 To Critical Strikes . | . . . . Average Backups 8 | 5 8 9 7 Power 1 | 1 1 1 1 Propulsion 2 | 2 3 2 1 Utility 2 | . 1 3 2 Weapon 2 | . 2 2 2 Tool/Special . | . . . . Unused Backups 13 | 2 7 2 2 Power 2 | . 2 . . Propulsion 5 | 2 2 . 1 Utility 3 | . 2 . 1 Weapon 3 | . 1 2 . Tool/Special . | . . . . Average Slot Usage (%) 92 | . 93 99 60 Engine 13 | . 14 14 7 Leg 25 | . 27 28 12 Device 1 | . 2 . 6 Storage 13 | . 14 14 9 Processor 11 | . 7 14 7 Energy Gun 12 | . 14 13 6 Ballistic Gun 12 | . 11 14 6 Peak Build Rating 15 | 6 8 9 15 Average Rating 8 | 5 7 8 10 On Entrance 5 | . 6 8 9 Naked Turns . | . . . . Heaviest Build 32 | 14 21 17 32 Greatest Support 26 | 20 20 20 26 Greatest Overweight (x) 6 | . 1 . 6 Average Overweight (x) . | . . . 1 Largest Inventory Capacity 10 | 8 10 10 10 Average Capacity 9 | 7 9 10 10 Most Carried 10 | 7 10 10 10 Average Carried 9 | 5 8 9 8 Final Capacity 10 | 8 10 10 10 Final Carried 10 | 7 10 10 9 Class Distribution -------------------- 54% | Scavenger-Mutant 45% | Mutant Dominant Class ---------------- Mutant | -10/Materials Scavenger-Mutant | -10/Subcaves Mutant | -8/Materials Resources | -11 -10 -10 -8 ----------- Run | Yrd Mat Sub Mat Matter Collected 590 | 220 233 126 11 Remotely . | . . . . Salvage Created 1092 | 126 464 179 323 Parts 82 | 7 41 14 20 Haulers Intercepted 3 | . 2 . 1 Recyclers Shooed 3 | . . . 3 Parts Field Recycled . | . . . . Retrieved Matter . | . . . . Parts Self-Destructed 10 | . . 10 . Prevented . | . . . . Kills | -11 -10 -10 -8 ------- Run | Yrd Mat Sub Mat Combat Hostiles Destroyed 19 | . 7 5 7 Guns 15 | . 7 5 3 AOE 4 | . . . 4 Classes Destroyed 10 | 3 6 1 . Worker 3 | 2 . . 1 Builder 8 | . 3 . 5 Tunneler 3 | 2 1 . . Hauler 3 | . 2 . 1 Recycler 2 | 1 . . 1 Operator 2 | . 1 . 1 Watcher 2 | . 2 . . Swarmer 5 | . 3 2 . Grunt 13 | . 4 2 7 Subdweller 1 | . . 1 . Best Kill Streak 13 | 4 5 2 13 Combat Bots Only 6 | . 4 2 6 Max Kills in Single Turn 4 | 1 2 1 4 Gunslinging . | . . . . Exploded 2 | . . . 2 Melee . | . . . . Uniques/NPCs Destroyed . | . . . . Combat | -11 -10 -10 -8 -------- Run | Yrd Mat Sub Mat Hostile Shots Fired 185 | . 17 32 136 Missed 62 | . 5 14 43 Hits 123 | . 12 18 93 Projectile 123 | . 12 18 93 Critical Strikes 6 | . . 2 4 Damage Taken 1938 | . 159 338 1441 Core 646 | . 40 36 570 Absorbed by Shields . | . . . . Core Remaining (%) 84 | 100 . 69 . Volleys Fired 84 | 11 38 12 23 Largest 2 | 2 2 2 2 Hottest 105 | 70 60 70 105 Shots Fired 156 | 22 69 24 41 Gun 146 | 22 69 24 31 Cannon . | . . . . Launcher 10 | . . . 10 Special . | . . . . Kinetic 77 | 11 31 12 23 Thermal 45 | 11 7 9 18 Explosive . | . . . . Electromagnetic 34 | . 31 3 . Robot Hit Streak 12 | 3 12 6 6 Robot Miss Streak 6 | 2 6 2 4 Penetration Max . | . . . . Secondary Targets . | . . . . Shots Hit Robots 77 | 13 33 12 19 Core Hits 73 | 5 22 8 38 Critical Kills . | . . . . Critical Parts Destroyed . | . . . . Critical Strikes 3 | 1 2 . . Burn 2 | 1 1 . . Corrupt 1 | . 1 . . Melee Attacks . | . . . . Impact . | . . . . Slashing . | . . . . Piercing . | . . . . Sneak Attacks . | . . . . Combat Hostiles . | . . . . Follow-up Attacks . | . . . . Damage Inflicted 2415 | 170 497 117 1631 Guns 948 | 170 424 117 237 Cannons . | . . . . Explosions 1467 | . 73 . 1394 Melee . | . . . . Ramming . | . . . . Kinetic 1737 | 94 124 33 1486 Thermal 418 | 76 135 62 145 Explosive . | . . . . Electromagnetic 260 | . 238 22 . Impact . | . . . . Slashing . | . . . . Piercing . | . . . . Highest Corruption . | . . . . Average Corruption . | . . . . Corruption Purged . | . . . . Corruption Blocked . | . . . . Overload Shots . | . . . . Overflow Damage 9 | . . . 9 Projectiles . | . . . . Explosions 9 | . . . 9 Melee . | . . . . Knockbacks . | . . . . Impact . | . . . . Kinetic . | . . . . Secondary . | . . . . Self-Inflicted Damage 36 | . 36 . . Shots 1 | . 1 . . Rammed . | . . . . Targets Rammed . | . . . . Kicked . | . . . . Crushed . | . . . . Highest Temperature 473 | 45 100 269 473 Average Temperature 129 | 18 29 106 216 Received Heat Transfer 1065 | . 48 414 603 Effects 4 | . . . 4 Shutdowns 1 | . . . 1 Energy Bleed 2 | . . . 2 Matter Decay 1 | . . . 1 Siege Activations . | . . . . Martial Activations . | . . . . Shielding Activations . | . . . . Robots Disrupted . | . . . . Combat Hostiles . | . . . . Robots Corrupted . | . . . . Combat Hostiles . | . . . . Parts Fried . | . . . . Impact Corruptions . | . . . . Robots Melted . | . . . . Combat Hostiles . | . . . . Parts Melted 2 | 1 1 . . Heat Transferred 1110 | 296 259 185 370 Parts Sabotaged . | . . . . Parts Stolen . | . . . . Parts Stripped . | . . . . Power Chain Reactions 1 | . 1 . . Alert | -11 -10 -10 -8 ------- Run | Yrd Mat Sub Mat Maximum Alert Level 1 | . . . 1 Low Security (%) 91 | 100 100 . 72 Level 1 8 | . . . 27 Level 2 . | . . . . Level 3 . | . . . . Level 4 . | . . . . Level 5 . | . . . . High Security . | . . . . Max Security . | . . . . Peak Influence 262 | 15 117 . 262 Initial 3 | . . . 3 Average 56 | 1 46 . 106 Influence Increases 743 | 25 261 130 327 Destroy 0b10 Robot/C 360 | . 140 80 140 Destroy 0b10 Robot/NC 115 | 25 45 . 45 Destroy Leader 90 | . 38 20 32 Successful Hack 19 | . 19 . . Disable Machine 45 | . 15 . 30 Destroy Structure 69 | . 4 . 65 Partial Spotted 15 | . . . 15 Lose Combat Pursuer 30 | . . 30 . Influence Decreases 621 | 25 180 204 212 Entered New Map 44 | . . 40 4 Time Decay 487 | 25 180 164 118 Lost Part 90 | . . . 90 Squads Dispatched 4 | . 2 . 2 Investigation 1 | . 1 . . Extermination . | . . . . Reinforcement 3 | . 1 . 2 Assault . | . . . . Garrison . | . . . . Intercept . | . . . . Searches Triggered . | . . . . Construction Impeded 1 | . . . 1 Haulers Reinforced . | . . . . Active Scanning Responses . | . . . . Cargo Convoy Interrupts . | . . . . Stealth | -11 -10 -10 -8 --------- Run | Yrd Mat Sub Mat Distress Signals 1 | . . . 1 Communications Jammed . | . . . . Distress Signals . | . . . . Times Spotted 34 | . 15 7 12 Peak Tracking Total 5 | . 5 3 5 Tactical Retreats 4 | . 2 2 . Traps | -11 -10 -10 -8 ------- Run | Yrd Mat Sub Mat Traps Triggered 2 | . 1 1 . Indirectly . | . . . . Trap Hack Attempts . | . . . . Triggered . | . . . . Disarmed . | . . . . Reprogrammed . | . . . . Reused . | . . . . Traps Extracted . | . . . . Installed . | . . . . Triggered . | . . . . Machines | -11 -10 -10 -8 ---------- Run | Yrd Mat Sub Mat Machines Disabled 3 | . 1 . 2 Max in Single Turn 1 | . 1 . 1 Machines Repaired . | . . . . Machines Dismantled . | . . . . Machines Sabotaged . | . . . . Overloaded Fab Kills . | . . . . Hacking | -11 -10 -10 -8 --------- Run | Yrd Mat Sub Mat Machines Accessed 6 | . 4 1 1 Terminals 4 | . 4 . . Fabricators . | . . . . Repair Stations . | . . . . Recycling Units . | . . . . Scanalyzers 1 | . . . 1 Garrison Access . | . . . . Total Hacks 19 | . 11 4 4 Successful 13 | . 7 4 2 Failed 6 | . 4 . 2 Catastrophic . | . . . . Database Lockouts . | . . . . Manual . | . . . . Terminals 11 | . 11 . . Fabricators . | . . . . Repair Stations . | . . . . Recycling Units . | . . . . Scanalyzers 4 | . . . 4 Garrison Access . | . . . . Terminal Hacks 11 | . 7 4 . Record 7 | . 3 4 . Prototype ID Bank 1 | . 1 . . Terminal Index 1 | . 1 . . Alert Level 1 | . 1 . . Zone Layout 1 | . 1 . . Fabricator Hacks . | . . . . Repair Station Hacks . | . . . . Recycling Unit Hacks . | . . . . Scanalyzer 2 | . . . 2 Insert Component 1 | . . . 1 Analyze 1 | . . . 1 Garrison Access Hacks . | . . . . Unauthorized Hacks . | . . . . Terminals . | . . . . Fabricators . | . . . . Repair Stations . | . . . . Recycling Units . | . . . . Scanalyzers . | . . . . Garrison Access . | . . . . Data Cores Recovered . | . . . . Used . | . . . . Hacking Detections 3 | . 2 . 1 Full Trace Events 1 | . 1 . . Feedback Events . | . . . . Feedback Blocked . | . . . . Robot Schematics Acquired . | . . . . Robots Built . | . . . . Authchips . | . . . . Time . | . . . . Total Robot Build Rating . | . . . . Part Schematics Acquired 1 | . . . 1 Parts Built . | . . . . Authchips . | . . . . Time . | . . . . Total Part Build Rating . | . . . . Parts Repaired . | . . . . Time . | . . . . Parts Recycled . | . . . . Recycled Matter . | . . . . Retrieved Matter . | . . . . Retrieved Components . | . . . . Parts Scanalyzed 1 | . . . 1 Part Schematics Acquired 1 | . . . 1 Parts Damaged . | . . . . Bothacking | -11 -10 -10 -8 ------------ Run | Yrd Mat Sub Mat Used RIF Installer . | . . . . Robots Hacked . | . . . . Non-combat . | . . . . Combat . | . . . . Robot Hacks Applied . | . . . . Relay Couplers Released . | . . . . Fabnet Peak Effective % . | . . . . Robots Rewired . | . . . . Allies Hacked . | . . . . Hacks Repelled . | . . . . Allies | -11 -10 -10 -8 -------- Run | Yrd Mat Sub Mat Total Allies . | . . . . Largest Group . | . . . . Highest-Rated Group . | . . . . Highest-Rated Ally . | . . . . Total Orders . | . . . . Ally Attacks . | . . . . Total Damage . | . . . . Kills . | . . . . Allies Corrupted . | . . . . Allies Melted . | . . . . Intel | -11 -10 -10 -8 ------- Run | Yrd Mat Sub Mat Active Infowar (turns) 2167 | . 437 1466 264 T.N.C. 2039 | . 309 1466 264 ECM 129 | . 128 . 1 Robot Analysis Total . | . . . . Derelict Logs Recovered 1 | . . 1 . Drone Launches . | . . . . Drone Recoveries . | . . . . Exploration | -11 -10 -10 -8 ------------- Run | Yrd Mat Sub Mat Turns Passed 2562 | 183 593 1466 320 Spaces Moved 1780 | 116 357 1180 127 Core 48 | 21 . . 27 Treads . | . . . . Legs 1722 | 95 357 1180 90 Wheels . | . . . . Hover . | . . . . Flight 10 | . . . 10 Fastest Speed 50 | 50 120 120 115 Average Speed 124 | 107 126 120 177 Slowest Speed 520 | 120 190 120 520 Overloaded Moves . | . . . . Propulsion Burnouts . | . . . . Robots Hopped . | . . . . Potential Cave-ins . | . . . . Cave-ins Triggered . | . . . . Exploration Rate (%) 27 | 4 48 45 12 Regions Visited 3 Branch Regions 1 Pre-discovered Areas . | . . . . Known Exits Taken . | . . . . Unknown Exits Taken 3 | 1 1 1 . Scrap Searched . | . . . . Spaces Dug . | . . . . Terrain Destroyed 82 | . 3 . 79 Melee . | . . . . Projectile . | . . . . AOE 82 | . 3 . 79 Terrain Rammed . | . . . . Walls Destroyed . | . . . . Machines Disabled . | . . . . Actions | -11 -10 -10 -8 --------- Run | Yrd Mat Sub Mat Total 1975 | 152 431 1210 182 Wait 18 | . 5 2 11 Move 1777 | 115 356 1179 127 Hop . | . . . . Pick Up 36 | 15 13 4 4 Fast Attach 1 | . 1 . . Attach 17 | 6 2 1 8 Detach 3 | . . . 3 Swap 18 | 3 6 5 4 Drop 21 | 2 10 7 2 Fire 84 | 11 38 12 23 Melee . | . . . . Ram . | . . . . Kick . | . . . . Crush . | . . . . Escape Stasis . | . . . . Rewire . | . . . . Trap . | . . . . Miscellaneous . | . . . . Route ------- -11/Scrapyard -10/Materials (discovered 3 exits: [*Min x2] / *Sub) -10/Subcaves -8/Materials (discovered 1 exit: Sto) History --------- Turn | Location | Event 9 | -11/Scrapyard | Discovered new exit (range 15) 184 | -11/Scrapyard | Entered Materials 282 | -10/Materials | Discovered new exit (range 16) 315 | -10/Materials | Build established: Mutant 558 | -10/Materials | Discovered new exit (range 12) 705 | -10/Materials | Discovered new exit (range 8) 777 | -10/Materials | Entered Subcaves 924 | -10/Subcaves | A swath of the cavern ceiling suddenly collapsed 1193 | -10/Subcaves | Build established: Scavenger-Mutant 1226 | -10/Subcaves | Discovered new exit (range 9) 1308 | -10/Subcaves | Visited Clippyterm 1312 | -10/Subcaves | Learned Factory stockpile data 2243 | -10/Subcaves | Entered Materials 2243 | -8/Materials | Evolved 4 slots: Propulsion x1, Utility x3 2244 | -8/Materials | Identified exit to Storage 2509 | -8/Materials | Core integrity fell below 50% 2538 | -8/Materials | Lost 7 parts (1p3n1u2w) 2555 | -8/Materials | Core integrity fell below 20% 2563 | -8/Materials | Destroyed by H-55 Commando with Gauss Rifle Last Messages --------------- 02502_ Penetrated by Slug. 02505_ Slug penetrates Wall. 02505_ U-05 Engineer lays Concrete. 02507_ Transport Network Coupler destroyed. 02507_ U-05 Engineer builds a Wall. 02511_ Slug penetrates R-06 Scavenger. 02511_ R-06 Scavenger destroyed. 02522_ Acquired Pulse Rifle. 02525_ Slug penetrates Wall. 02533_ Acquired Cesium-ion Thruster. 02535_ Slug penetrates Wall. 02538_ K-01 Serf collects debris. 02543_ K-01 Serf cleans the Matter Filter. 02547_ Penetrated by Slug. 02547_ Cesium-ion Thruster destroyed. 02550_ K-01 Serf collects debris. 02550_ Penetrated by Slug. 02553_ K-01 Serf collects debris. 02553_ Penetrated by Slug. 02557_ K-01 Serf collects debris. Map ----- +----------------------------------------------------+ | | | | | | | | | | | | | | | | | ?????????????????????????????????????????????????? | | ?????????????????????????????##########??????????? | | ?????????????????????????????# #??????????? | | ?????????????????????????????# #??????????? | | ????????????########?????????# #??????????? | | ????????????# #?????????# #??????????? | | ????????????#"S #?????????# #??????????? | | ????????????#""" !#?????##### #??????????? | | ????????????# "" #?????# # #??????????? | | ???????###### #?????# # #??????????? | | ????#### # #?????# # #??????????? | | ??### = "######### ###+######??????????? | | ?## = ##"T?????????? | | ?# [%= ?????? | | ?# *!! ?? | | # ## ###########+##### ??? | | #" = # "#??????# # / ??? | | # %|# ???# @ """""# ???? | | #%**# #?#hgk"""""# """ %! ???? | | " + #?# g """""# """ !! ???? | | #[ #?# """""# """ ! ????? | | # #?# """""# ?? ????? | | " # #?# """""# ???? ?????? | | " " #?# """""#?"T"????###?????? | | " " #?# #?###????????????? | | ##+####" ""#########?##########????????????????? | | ??????#" %""#???????????????????????????????????? | | ?????? "" ???????????????????????????????????? | | ?????? "" ???????????????????????????????????? | | ??????? "# ???????????????????????????????????? | | ???????# ??!???????????????????????????????????? | | ???????? ??????????????????????????????????????? | | ?????????????????????????????????????????????????? | | ?????????????????????????????????????????????????? | | ?????????????????????????????????????????????????? | | ?????????????????????????????????????????????????? | | ?????????????????????????????????????????????????? | | ?????????????????????????????????????????????????? | | ?????????????????????????????????????????????????? | | ?????????????????????????????????????????????????? | | ?????????????????????????????????????????????????? | | ?????????????????????????????????????????????????? | +----------------------------------------------------+ Best States ------------- Heat Dissipation 31 Energy Generation 10 Energy Capacity 250 Matter Stores 300 Matter Capacity 300 Sight Range 16 Terrain Scan Density 10 ECM Strength 1 Additional Mass Support 6 Armor Coverage 225 Evasion (%) 55 Item Schematics ----------------- Hacking Suite | -8/Materials | Scanalyzed Robot Schematics ------------------ None Fabricated ------------ Nothing Repaired ---------- Nothing Alien Tech Used ----------------- None Achievements -------------- None Challenges ------------ None Game ------ Seed RegenerativeCouplerRigger Manual? 0 Play Time 00:32:06 Cumulative 7.3 hours Start 2025.05.25 @ 11:48:31 End 2025.05.25 @ 12:21:05 Sessions 1 Manual Loads 0 Difficulty Rogue Special Mode None Game No. 9 Rogue 9 Adventurer 0 Explorer 0 Win Type - Total 0 Types 0/0/0/0/0/0/0/0/0/0 Lore% 10 Gallery% 12 Achievement% 16 Wizard Run 0 Options --------- Layout 0 ASCII 0 Keyboard 0 Movement Arrows Keybinds 0 Fullscreen 1 Font 18/SmallcapsGlow Map View 76x50 Zoom Use 0% Tactical HUD 1 Map Filters NONE Filters NONE Steam 1 RUN: 7826878f-9036-4b0b-a72c-c06f778d80b3